bitfinex/quotes_ETHUSD_20240910
["timestamp","ask_amount","ask_price","bid_price","bid_amount"]
[1725955633847,3.59189297,2370.6,2370.0,20.10171225]
[1725955633848,0.88619531,2370.5,2370.1,0.74465161]
[1725955634046,1.5112432,2370.5,2370.1,0.66027671]
[1725955634252,3.37019531,2370.4,2370.0,19.44143554]
[1725955634553,0.88619531,2370.3,2370.0,19.44143554]
[1725955634767,3.37019531,2370.4,2370.1,0.66014816]
[1725955635040,3.37019531,2370.4,2370.1,1.32028654]
[1725955635241,3.37019531,2370.4,2370.1,0.66013838]
[1725955635448,2.484,2370.4,2370.2,0.66011815]
[1725955635823,3.37019531,2370.4,2369.9,3.66011815]
[1725955636021,3.37019531,2370.4,2370.0,0.66011815]
[1725955636210,3.37019531,2370.4,2370.1,0.66011815]
[1725955636402,3.37019531,2370.4,2370.0,0.66011815]
[1725955636603,2.484,2370.4,2370.1,0.66011815]
[1725955636801,2.484,2370.4,2370.0,0.66011815]
[1725955637008,2.484,2370.4,2369.9,3.0]
[1725955637009,3.37019531,2370.4,2370.1,0.66011815]
[1725955637313,3.37019531,2370.4,2370.0,0.66011815]
[1725955637736,0.88619531,2370.3,2369.9,3.66011815]
[1725955638150,0.88619531,2370.3,2369.9,0.66011815]
[1725955638321,0.88619531,2370.2,2369.9,0.66011815]
[1725955638517,0.88619531,2370.3,2369.9,0.66011815]
[1725955639378,0.88619531,2370.3,2370.0,0.66011815]
[1725955639509,3.37019531,2370.4,2370.0,0.66011815]
[1725955639935,3.37019531,2370.4,2370.1,0.66016385]
[1725955640149,0.88619531,2370.3,2370.0,0.66016385]
[1725955640354,3.37019531,2370.4,2370.0,0.66016385]
[1725955640511,3.37019531,2370.4,2369.9,0.66016385]
[1725955640711,3.37019531,2370.4,2370.0,0.66016401]
[1725955641004,3.37019531,2370.4,2369.9,0.7445539]
[1725955641255,3.37019531,2370.4,2369.9,2.31859894]
[1725955641408,3.37019531,2370.4,2370.0,0.66018134]
[1725955641614,0.88619531,2370.4,2370.1,0.74456397]
[1725955641825,0.88619531,2370.5,2370.1,0.63438263]
[1725955642147,3.22569531,2370.6,2370.2,0.66012333]
[1725955642720,0.88619531,2370.4,2370.0,3.0]
[1725955642933,0.88619531,2370.4,2370.1,0.66016568]
[1725955643133,0.88619531,2370.4,2369.9,0.66016568]
[1725955643445,0.88619531,2370.4,2370.0,0.66016568]
[1725955643753,0.88619531,2370.5,2370.0,0.66016568]
[1725955643913,0.88619531,2370.5,2370.1,1.29454791]
[1725955644113,3.22569531,2370.6,2370.2,0.66016568]
[1725955644827,0.88619531,2370.9,2370.4,20.65160122]
[1725955645041,0.88619531,2371.0,2370.6,2.3991]
[1725955645211,0.88619531,2371.2,2370.7,0.63434968]
[1725955645412,0.88619531,2371.4,2370.8,4.64499838]
[1725955645673,0.88619531,2371.5,2370.9,3.55]
[1725955645874,0.88619531,2371.5,2371.0,0.08434156]
[1725955646044,0.88619531,2371.5,2371.1,0.55]
[1725955646358,3.28942011,2371.6,2371.1,0.55]
[1725955646538,3.28942011,2371.6,2371.0,0.55]
[1725955646742,3.28942011,2371.6,2371.1,0.555]
[1725955647188,2.4032248,2371.6,2371.1,0.555]
[1725955647485,2.4032248,2371.6,2371.1,0.6393363]
[1725955647690,0.1191248,2371.6,2371.2,0.55]
[1725955647894,0.1191248,2371.6,2371.3,0.08433196]
[1725955648050,0.1191248,2371.6,2371.3,0.44317516]
[1725955648252,0.1191248,2371.6,2371.2,22.44143554]
[1725955648253,2.5816248,2371.6,2371.2,22.44143554]
[1725955648872,2.5816248,2371.6,2371.2,19.44143554]
[1725955649075,3.46782011,2371.6,2371.2,19.44143554]
[1725955650397,2.2572,2371.5,2370.6,7.36]
[1725955650577,2.2572,2371.5,2370.3,2.0]
[1725955650578,3.23699531,2371.3,2370.3,2.0]
[1725955650762,3.1284403,2371.3,2370.4,0.52101148]
[1725955650946,3.1284403,2371.3,2370.3,2.0]
[1725955651146,3.1284403,2371.3,2370.1,2.3576]
[1725955651346,4.01463561,2371.3,2370.1,2.3576]
[1725955651789,3.1284403,2371.3,2370.1,5.3576]
[1725955652109,4.01463561,2371.3,2370.1,5.3576]
[1725955652380,2.4172,2371.1,2370.2,1.60677148]
[1725955652586,2.4172,2371.1,2370.2,7.81688623]
[1725955653450,2.4172,2371.1,2370.2,4.60677148]
[1725955655576,2.4172,2371.1,2370.2,3.55]
[1725955655750,2.4172,2371.1,2370.2,0.55]
[1725955656590,2.3821,2371.0,2370.2,0.55]
[1725955657294,2.3821,2371.0,2370.3,0.08436879]
[1725955657447,2.3821,2371.0,2370.4,0.55]
[1725955657800,2.3821,2371.0,2370.5,0.68761855]
[1725955658647,2.3821,2371.0,2370.6,0.55]
[1725955659160,2.3821,2371.0,2370.6,0.63435484]
[1725955659356,2.4407,2371.5,2370.6,0.63435484]
[1725955659568,3.32689531,2371.5,2370.6,23.07579038]
[1725955659805,2.4407,2371.5,2370.7,2.36790473]
[1725955659953,2.4407,2371.5,2370.8,0.08434995]
[1725955660349,3.32689531,2371.5,2370.8,0.08434995]
[1725955660550,2.4407,2371.5,2370.8,0.08434995]
[1725955660854,2.4407,2371.5,2370.7,2.36790473]
[1725955661080,2.4407,2371.5,2370.8,3.58200293]
[1725955661553,2.4407,2371.5,2370.9,3.0]
[1725955661748,0.1191248,2371.6,2371.0,0.63434276]
[1725955662600,0.1191248,2371.6,2371.1,21.72203554]
[1725955662805,0.1191248,2371.6,2371.2,23.07576767]
[1725955662952,0.1191248,2371.6,2371.3,2.61996894]
[1725955664824,0.1191248,2371.6,2371.3,2.53563677]
[1725955667178,0.1191248,2371.6,2371.2,3.0]
[1725955667514,0.1191248,2371.6,2371.3,0.0843336]
[1725955668514,0.1191248,2371.6,2371.5,4.3456]
[1725955668722,0.1191248,2371.6,2371.5,7.8956]
[1725955669477,0.1191248,2371.6,2371.5,3.0]
[1725955669696,0.1191248,2371.6,2371.4,3.0]
[1725955670022,0.1191248,2371.6,2371.5,2.24414355]
[1725955670323,0.1191248,2371.6,2371.4,3.0]
[1725955672409,0.1191248,2371.6,2371.5,0.08432869]
[1725955672607,0.1191248,2371.6,2371.5,0.55]
[1725955672806,0.1191248,2371.6,2371.4,3.0]
[1725955673141,0.1191248,2371.6,2371.5,19.44143554]
[1725955677166,0.1191248,2371.6,2371.5,30.22089384]
[1725955677316,0.1191248,2371.6,2371.5,30.77089384]
[1725955677510,0.1191248,2371.6,2371.5,31.48011958]
[1725955677702,0.1191248,2371.6,2371.5,31.48021949]
[1725955678033,0.1191248,2371.6,2371.5,30.77089384]
[1725955678341,0.1191248,2371.6,2371.5,31.48020905]
[1725955678843,2.28,2372.5,2371.7,2.0]
[1725955679044,2.28,2372.5,2371.8,0.63430818]
[1725955679216,2.28,2372.5,2371.9,0.26343082]
[1725955679397,2.28,2372.5,2371.9,2.51883082]
[1725955679602,2.28,2372.5,2372.0,0.08430817]
[1725955679804,2.28,2372.5,2371.9,2.51883082]
[1725955680037,2.28,2372.5,2371.9,2.60313906]
[1725955680194,2.28,2372.5,2372.0,0.61531391]
[1725955680395,2.28,2372.5,2371.8,3.0]
[1725955680625,2.28,2372.5,2371.9,0.63430823]
[1725955681342,0.05500005,2372.6,2371.9,0.63430823]
[1725955681944,2.3846,2372.7,2371.9,0.63430823]
[1725955682443,2.3846,2372.7,2372.1,2.4224]
[1725955682655,2.3846,2372.7,2372.2,0.63429683]
[1725955682800,2.3846,2372.7,2372.3,0.08429683]
[1725955683275,2.43960005,2373.1,2372.4,0.55]
[1725955683454,2.43960005,2373.1,2372.5,0.08428648]
[1725955683654,2.3846,2373.1,2372.5,0.08428648]
[1725955683802,2.3846,2373.1,2372.5,0.9687266]
[1725955684146,2.43960005,2373.4,2372.6,2.4224]
[1725955684736,2.43960005,2373.4,2372.7,0.08428396]
[1725955684939,2.43960005,2373.4,2372.7,3.08428396]
[1725955685256,0.05500005,2373.3,2372.7,3.08428396]
[1725955685638,2.43960005,2373.6,2372.7,3.08428396]
[1725955686013,2.43960005,2373.6,2372.7,0.08428396]
[1725955686209,2.43960005,2373.6,2372.8,4.4224]
[1725955686404,2.43960005,2373.6,2372.5,8.30684012]
[1725955686602,3.21011475,2373.5,2372.6,0.55]
[1725955686832,0.05500005,2373.4,2372.6,0.55]
[1725955687962,2.3846,2373.3,2372.6,0.55]
[1725955688156,0.05500005,2373.2,2372.6,0.55]
[1725955688968,0.05500005,2373.2,2372.5,3.0]
[1725955689169,0.05500005,2373.2,2372.2,2.0]
[1725955689170,2.4995,2373.1,2372.2,2.0]
[1725955689384,0.05500005,2373.0,2372.2,2.0]
[1725955690787,0.05500005,2373.0,2372.3,0.08429629]
[1725955691075,0.05500005,2373.3,2372.8,3.21011475]
[1725955691306,1.04385181,2373.8,2373.3,2.3445]
[1725955691591,1.04385181,2373.8,2373.7,7.55461475]
[1725955691731,0.05500005,2375.0,2374.2,2.3302]
[1725955691929,1.32929297,2375.6,2374.2,2.3302]
[1725955691930,1.32929297,2375.6,2375.0,2.3302]
[1725955692181,0.05580005,2375.7,2375.2,3.21011475]
[1725955692182,1.33009297,2375.7,2375.2,3.21011475]
[1725955692393,1.33009297,2375.7,2375.0,2.0]
[1725955692533,0.05500005,2375.6,2374.5,2.2665]
[1725955692888,0.05500005,2375.6,2374.7,3.21011475]
[1725955693047,0.30560006,2375.6,2374.8,3.63420569]
[1725955693229,0.05500005,2375.6,2374.9,3.21011475]
[1725955693434,0.05500005,2375.6,2375.0,0.55]
[1725955693775,0.05500005,2375.6,2374.8,3.0]
[1725955693984,0.05500005,2375.6,2374.7,2.995]
[1725955694335,0.05500005,2375.6,2374.4,2.0]
[1725955694613,0.05500005,2375.6,2374.5,0.793302]
[1725955694825,0.05500005,2375.6,2374.4,2.0]
[1725955695133,6.18097962,2375.5,2373.9,2.0]
[1725955695332,0.05500005,2375.4,2374.0,0.55]
[1725955695631,3.05500005,2375.4,2374.0,0.55]
[1725955695834,0.53091,2375.3,2374.0,0.55]
[1725955696012,0.05500005,2375.2,2374.0,0.55]
[1725955696608,0.05500005,2375.2,2373.9,2.0]
[1725955696810,0.05500005,2375.2,2373.8,3.92687962]
[1725955696811,0.05500005,2375.2,2374.2,2.0]
[1725955697011,0.05500005,2375.2,2374.3,2.47361862]
[1725955697226,0.05500005,2375.2,2374.4,4.37424148]
[1725955697524,0.05580005,2375.7,2374.5,3.08421217]
[1725955697732,0.05580005,2375.7,2374.5,12.44421217]
[1725955698102,0.05580005,2375.7,2374.6,0.55]
[1725955698302,2.4562,2375.6,2374.1,2.0]
[1725955698501,0.30620006,2375.5,2374.1,6.68294]
[1725955698815,0.30620006,2375.5,2373.8,5.92687962]
[1725955698816,2.4562,2375.4,2373.8,5.92687962]
[1725955699014,0.05500005,2375.3,2373.8,2.0]
[1725955699217,3.05500005,2375.3,2373.8,2.0]
[1725955699550,0.05500005,2375.2,2373.8,2.0]
[1725955700096,0.05500005,2375.2,2373.8,5.92687962]
[1725955700325,0.60612005,2375.2,2373.9,0.59268796]
[1725955700529,0.60612005,2375.2,2374.0,0.55]
[1725955701014,2.4562,2375.1,2374.0,0.55]
[1725955701236,0.05500005,2375.0,2374.0,0.55]
[1725955701715,3.05500005,2375.0,2374.0,0.55]
[1725955701898,0.55112,2374.9,2374.1,0.08423374]
[1725955702103,0.05500005,2374.8,2374.1,0.08423374]
[1725955702446,0.05500005,2375.0,2374.1,2.0842301]
[1725955702748,0.05500005,2375.0,2374.2,0.55]
[1725955703042,0.05500005,2375.0,2374.3,0.08422323]
[1725955703198,0.05500005,2375.0,2374.2,0.63422281]
[1725955703199,0.30612005,2375.0,2374.2,0.63422281]
[1725955703753,0.30612005,2375.0,2373.9,3.0]
[1725955704043,0.30612005,2375.0,2373.1,7.36]
[1725955704044,3.92687962,2374.3,2373.1,7.36]
[1725955704203,2.3776,2373.9,2372.6,2.0]
[1725955704408,0.68544801,2373.8,2372.6,2.0]
[1725955704725,0.05500005,2373.7,2372.7,0.08427387]
[1725955705048,0.05500005,2373.7,2373.0,2.0]
[1725955705351,0.05500005,2373.7,2373.1,0.0842591]
[1725955705703,0.05500005,2373.7,2373.0,2.0]
[1725955705922,0.05500005,2373.7,2372.4,2.0]
[1725955706124,3.92687962,2373.4,2372.1,2.0]
[1725955706444,2.3338,2373.2,2371.8,2.0]
[1725955706645,3.98187967,2373.1,2371.8,2.0]
[1725955707179,2.4371,2373.0,2371.8,2.0]
[1725955707335,0.05500005,2372.9,2371.8,2.0]
[1725955707535,0.69689802,2372.9,2371.9,8.97134866]
[1725955707849,3.92687962,2372.5,2371.9,7.97395333]
[1725955708047,2.4568,2372.3,2371.0,17.33698013]
[1725955708265,2.4568,2372.3,2371.1,0.08432896]
[1725955708266,0.05500005,2372.2,2371.1,0.08432896]
[1725955708435,0.05500005,2372.2,2371.1,0.57125895]
[1725955708637,2.51180005,2372.3,2371.4,2.0]
[1725955708838,0.64189797,2372.9,2371.4,2.0]
[1725955708839,2.4568,2372.6,2371.5,0.08431585]
[1725955709039,2.4568,2372.6,2371.7,2.0]
[1725955709250,2.4568,2372.6,2371.8,0.08430438]
[1725955709628,0.05500005,2372.5,2371.8,0.08430438]
[1725955709778,0.05500005,2372.5,2371.7,2.0]
[1725955710081,0.05500005,2372.5,2371.8,0.08431363]
[1725955710574,0.30618005,2372.5,2371.8,0.08431363]
[1725955710776,0.05500005,2372.5,2371.6,0.08431497]
[1725955710941,0.05500005,2372.5,2371.7,0.55]
[1725955711145,0.05500005,2372.5,2371.8,0.08430898]
[1725955711375,2.4568,2372.6,2371.9,0.55]
[1725955711681,2.4568,2372.6,2372.0,0.08430293]
[1725955711893,2.4568,2372.6,2371.9,0.55]
[1725955712043,0.05500005,2372.5,2371.9,0.55]
[1725955713086,2.4568,2372.6,2371.9,0.6343086]
[1725955714695,2.4568,2372.6,2372.0,0.0843029]
[1725955714849,2.4568,2372.6,2371.9,0.55]
[1725955715049,0.05500005,2372.5,2371.9,1.841]
[1725955715263,2.4568,2372.6,2371.9,1.92530819]
[1725955716286,2.31240005,2373.0,2371.9,1.92530819]
[1725955718162,2.31240005,2373.0,2371.9,1.841]
[1725955718497,2.31240005,2373.0,2371.9,0.55]
[1725955718651,2.31240005,2373.0,2371.8,3.08430922]
[1725955719001,5.31240005,2373.0,2371.8,3.0]
[1725955719154,5.31240005,2373.0,2371.9,0.08431607]
[1725955719354,2.31240005,2373.0,2371.9,0.08431607]
[1725955719578,0.23124001,2372.9,2371.9,0.08431607]
[1725955719769,0.05500005,2372.8,2371.9,0.08431607]
[1725955719978,0.05500005,2372.8,2372.0,0.55]
[1725955720295,2.3784,2372.7,2371.7,3.0]
[1725955720603,0.05500005,2372.6,2371.7,3.0]
[1725955720756,2.3784,2372.5,2371.5,0.44873159]
[1725955720955,0.23124001,2372.9,2371.6,2.4093]
[1725955721210,2.2654,2373.0,2371.9,5.92687962]
[1725955721493,0.05500005,2373.5,2372.2,2.0]
[1725955721494,2.2654,2373.3,2372.2,2.0]
[1725955721699,0.05500005,2373.2,2372.3,0.08428755]
[1725955721874,0.05500005,2373.2,2372.3,3.08428755]
[1725955722070,0.05500005,2373.2,2372.4,0.55]
[1725955722279,2.2654,2373.3,2372.5,0.44771743]
[1725955722487,2.2654,2373.3,2372.6,0.55]
[1725955722790,2.2654,2373.3,2372.7,0.08428263]
[1725955724156,0.05500005,2373.2,2372.5,0.36342876]
[1725955724731,0.05500005,2373.2,2372.2,2.0]
[1725955724946,0.05500005,2373.2,2372.3,0.55]
[1725955725140,0.05500005,2373.2,2372.3,3.55]
[1725955725641,0.05500005,2373.2,2372.3,3.0]
[1725955725944,0.05500005,2373.2,2371.9,2.0]
[1725955726115,0.05500005,2373.2,2372.0,0.5]
[1725955726116,0.58704006,2373.2,2372.0,0.5]
[1725955726317,0.58704006,2373.2,2372.0,3.5]
[1725955726821,0.58704006,2373.2,2372.1,0.08429955]
[1725955727211,0.58704006,2373.2,2372.0,3.5]
[1725955727394,0.58704006,2373.2,2372.1,0.55]
[1725955727598,0.58704006,2373.2,2372.2,0.48929456]
[1725955727795,0.58704006,2373.2,2372.3,0.63429092]
[1725955728505,2.32040005,2373.3,2372.3,6.07009092]
[1725955728810,2.2654,2373.3,2372.3,6.07009092]
[1725955729835,0.05500005,2373.2,2372.3,3.63429092]
[1725955730034,2.4132,2373.1,2372.3,3.0]
[1725955730234,0.05500005,2373.0,2372.3,3.0]
[1725955731858,0.05500005,2373.0,2372.3,3.08429438]
[1725955732036,0.05500005,2373.0,2372.4,0.55]
[1725955732244,0.05500005,2373.0,2372.5,0.08428911]
[1725955732447,0.05500005,2373.0,2372.5,0.44771802]
[1725955732995,0.05500005,2373.0,2372.5,0.36342891]
[1725955735437,2.4132,2373.1,2372.5,0.36342891]
[1725955736013,0.05500005,2373.0,2372.5,0.36342891]
[1725955736481,2.4132,2373.1,2372.5,0.36342891]
[1725955736869,2.4132,2373.1,2372.5,0.44771758]
[1725955737584,0.05500005,2373.0,2372.5,0.36342891]
[1725955737757,0.05500005,2373.0,2372.4,0.55]
[1725955739343,0.05500005,2373.0,2372.5,0.08428868]
[1725955740844,0.05500005,2373.0,2372.4,0.55]
[1725955741044,0.05500005,2373.0,2372.3,3.0]
[1725955742368,0.05500005,2373.0,2372.4,0.08429106]
[1725955742553,2.4132,2373.1,2372.4,1.12872017]
[1725955742943,2.4132,2373.1,2372.5,0.55]
[1725955743282,2.4132,2373.1,2372.6,0.08428394]
[1725955743674,2.2792,2373.5,2372.6,0.08428394]
[1725955743846,0.05500005,2373.4,2372.6,0.08428394]
[1725955744048,2.2792,2373.5,2372.7,0.55]
[1725955744247,0.05500005,2373.4,2372.8,2.09184101]
[1725955744473,0.05500005,2373.4,2372.9,0.55]
[1725955744682,0.05500005,2373.4,2372.9,0.63427405]
[1725955745048,2.2792,2373.5,2372.9,0.63427405]
[1725955745888,2.2792,2373.5,2373.0,0.084269]
[1725955746087,2.3508,2373.9,2373.1,0.55]
[1725955746388,0.05500005,2373.8,2373.1,0.55]
[1725955746570,0.05500005,2373.8,2373.2,0.08426086]
[1725955747060,2.40580005,2373.9,2373.2,0.08426086]
[1725955747262,2.3508,2373.9,2373.2,0.08426086]
[1725955747586,2.3508,2373.9,2373.3,0.55]
[1725955748092,0.05500005,2373.8,2373.2,3.0]
[1725955748295,0.05500005,2373.8,2373.1,2.0]
[1725955748448,0.05500005,2373.8,2373.0,3.0]
[1725955748644,0.05500005,2373.8,2372.8,3.0]
[1725955748845,0.05500005,2373.8,2372.4,3.92687962]
[1725955748846,2.4505,2373.7,2372.4,2.0]
[1725955749070,2.4505,2373.5,2372.1,2.0]
[1725955749272,4.86807498,2373.6,2372.1,2.0]
[1725955749273,2.50550005,2373.4,2372.1,2.0]
[1725955749482,0.88619531,2373.3,2372.1,2.0]
[1725955749679,2.50550005,2373.2,2372.1,2.0]
[1725955749955,2.50550005,2373.2,2372.2,0.43036]
[1725955749956,0.33916954,2373.1,2372.2,0.43036]
[1725955750150,0.05500005,2373.0,2372.2,0.43036]
[1725955752297,0.05500005,2373.0,2372.3,0.63429207]
[1725955752594,0.05500005,2373.0,2372.3,0.55]
[1725955755251,0.05500005,2373.0,2372.3,0.63429525]
[1725955755557,0.56101584,2373.0,2372.3,0.63429525]
[1725955755758,0.05500005,2373.0,2372.3,0.63429525]
[1725955756000,2.4505,2373.2,2372.4,2.0]
[1725955756302,3.33669531,2373.2,2372.5,0.63428209]
[1725955756456,3.39169536,2373.2,2372.5,0.63428209]
[1725955756903,0.88619531,2373.1,2372.5,0.08428209]
[1725955757101,1.35829414,2373.1,2372.5,0.08428209]
[1725955757394,1.35829414,2373.1,2372.2,3.43036]
[1725955757395,1.35829414,2373.1,2372.3,0.08428887]
[1725955757561,2.4505,2373.2,2372.4,2.55]
[1725955757761,2.4505,2373.2,2372.5,0.08427997]
[1725955758000,2.4505,2373.2,2372.6,0.55]
[1725955758164,3.33669531,2373.2,2372.7,0.08428116]
[1725955758498,2.4505,2373.2,2372.7,0.08428116]
[1725955759531,2.4505,2373.2,2372.7,0.44770928]
[1725955759673,2.4505,2373.2,2372.8,0.08427821]
[1725955759874,3.39169536,2373.2,2372.3,7.36]
[1725955760126,3.17539531,2372.9,2372.3,7.36]
[1725955760273,0.05500005,2372.8,2372.3,7.36]
[1725955761416,0.94119536,2372.8,2372.3,8.40442953]
[1725955761621,0.94119536,2372.7,2372.3,7.36]
[1725955761777,0.94119536,2372.8,2372.1,3.0]
[1725955762115,0.05500005,2372.7,2372.2,0.55]
[1725955762354,0.05500005,2372.7,2372.1,0.55]
[1725955762619,0.94119536,2372.7,2372.1,0.55]
[1725955762828,0.94119536,2372.7,2372.1,3.58514355]
[1725955763114,0.05500005,2372.7,2372.2,3.0]
[1725955763324,2.263,2372.6,2371.9,26.80143554]
[1725955763509,2.263,2372.4,2371.6,7.36]
[1725955763691,2.263,2372.4,2371.5,31.88143554]
[1725955763692,0.05500005,2372.3,2371.7,3.92414355]
[1725955764009,0.05500005,2372.3,2371.5,19.44143554]
[1725955764620,2.4557,2372.2,2371.4,28.80143554]
[1725955764774,0.05500005,2372.1,2371.4,28.80143554]
[1725955764981,0.94119536,2372.1,2371.4,28.80143554]
[1725955765182,0.94119536,2372.1,2371.1,9.36]
[1725955765183,2.4557,2372.0,2371.1,9.36]
[1725955765383,0.05500005,2371.9,2371.2,2.97769801]
[1725955765800,2.4557,2371.8,2371.2,2.97769801]
[1725955765980,0.05500005,2371.7,2371.0,7.97698013]
[1725955766178,2.4557,2371.6,2371.0,7.97698013]
[1725955766377,0.05500005,2371.5,2371.0,7.97698013]
[1725955767527,2.3378,2371.4,2370.4,7.36]
[1725955767703,0.05500005,2371.5,2370.3,2.0]
[1725955767704,2.3378,2371.2,2370.3,2.0]
[1725955767993,2.3378,2371.2,2370.4,1.22299726]
[1725955767994,0.05500005,2371.1,2370.4,1.22299726]
[1725955768178,2.2593,2371.0,2370.4,1.22299726]
[1725955768583,0.05500005,2370.9,2370.4,1.22299726]
[1725955769418,0.05500005,2370.9,2370.0,3.0]
[1725955769633,0.05500005,2370.9,2370.1,0.08436762]
[1725955770436,2.2593,2371.0,2370.1,0.08436762]
[1725955771226,2.2593,2371.0,2370.2,0.55]
[1725955771471,2.4875,2371.3,2370.5,5.92687962]
[1725955771633,1.32929297,2371.8,2371.0,2.0]
[1725955771634,0.05500005,2371.8,2371.0,2.0]
[1725955771833,2.4875,2371.9,2371.1,0.63433094]
[1725955771834,2.54250005,2371.9,2371.1,0.63433094]
[1725955772163,2.54250005,2371.9,2371.1,3.63433094]
[1725955772164,2.4875,2371.9,2371.1,3.63433094]
[1725955772464,2.4875,2371.9,2371.3,2.0]
[1725955772667,2.4875,2371.9,2371.4,0.63431979]
[1725955772879,2.4875,2371.9,2371.5,0.26343198]
[1725955773022,2.4875,2371.9,2371.6,0.63431982]
[1725955774366,2.4875,2371.9,2371.6,0.55]
[1725955774536,2.4875,2371.9,2371.4,3.0]
[1725955774864,2.4875,2371.9,2371.0,5.0]
[1725955775164,2.4875,2371.9,2371.1,1.28384]
[1725955775366,2.4875,2371.9,2371.2,0.08432499]
[1725955775573,2.4875,2371.9,2371.3,0.55]
[1725955775734,2.4875,2371.9,2371.4,0.08432492]
[1725955777132,2.4875,2371.9,2371.5,0.55]
[1725955777326,2.4875,2371.9,2371.6,0.08431999]
[1725955777665,2.4875,2371.9,2371.6,0.44775199]
[1725955778165,2.3003,2372.5,2371.7,0.55]
[1725955778337,0.05500005,2372.4,2371.7,0.55]
[1725955779630,0.05500005,2372.4,2371.8,0.08431572]
[1725955779831,0.05500005,2372.4,2371.7,0.55]
[1725955779832,0.05500005,2372.4,2371.7,0.63431569]
[1725955780069,0.29053006,2372.4,2371.7,0.55]
[1725955780567,2.4479,2372.3,2371.7,0.55]
[1725955780765,0.05500005,2372.2,2371.7,0.55]
[1725955781165,0.05500005,2372.2,2371.7,0.63431579]
[1725955781368,0.05500005,2372.2,2371.7,0.55]
[1725955781564,0.32884306,2372.2,2371.6,3.0]
[1725955782738,2.4895,2372.1,2371.6,3.0]
[1725955783177,0.05500005,2372.0,2371.5,7.36]
[1725955783386,0.05500005,2372.0,2371.3,22.44143554]
[1725955783583,0.05500005,2372.0,2371.4,3.55]
[1725955783741,0.05500005,2372.0,2371.4,6.04914355]
[1725955784254,0.05500005,2372.0,2371.5,0.08432466]
[1725955785033,0.05500005,2372.0,2371.4,6.04914355]
[1725955785145,0.05500005,2372.0,2371.4,3.55]
[1725955785340,2.4805,2371.9,2371.3,19.44143554]
[1725955785537,0.05500005,2371.8,2371.3,19.44143554]
[1725955786872,0.05500005,2371.8,2371.1,11.09384]
[1725955787066,0.05500005,2371.8,2371.2,3.55]
[1725955787273,0.05500005,2371.8,2371.2,4.714384]
[1725955788902,0.05500005,2371.8,2371.2,3.0]
[1725955789108,2.393,2371.7,2370.9,34.77875213]
[1725955789307,2.44800005,2371.6,2370.9,7.97731659]
[1725955789598,2.393,2371.6,2371.0,0.08434997]
[1725955790497,0.05500005,2371.5,2371.0,3.0]
[1725955791000,2.393,2371.6,2371.0,3.0]
[1725955791209,2.393,2371.6,2371.1,0.08433943]
[1725955792059,2.393,2371.6,2371.2,0.55]
[1725955792372,2.393,2371.6,2371.3,0.08433318]
[1725955793088,2.3396,2372.1,2371.3,0.08433318]
[1725955793260,2.57906,2372.1,2371.3,0.08433318]
[1725955793459,2.3396,2372.1,2371.4,0.55]
[1725955793791,2.3396,2372.1,2371.5,0.08431612]
[1725955794000,2.3396,2372.1,2371.6,0.55]
[1725955794300,2.3396,2372.1,2371.7,0.08431614]
[1725955795588,0.05500005,2372.0,2371.3,3.0]
[1725955795795,0.05500005,2372.0,2371.4,0.55]
[1725955796341,2.3396,2372.1,2371.5,0.08432186]
[1725955796503,0.05500005,2372.0,2371.6,0.55]
[1725955796805,0.05500005,2372.0,2371.4,0.55]
[1725955797264,2.3396,2372.1,2371.4,0.55]
[1725955797459,2.3396,2372.1,2371.5,0.405]
[1725955797685,2.3396,2372.1,2371.6,0.55]
[1725955799200,2.3396,2372.1,2371.6,0.63432044]
[1725955799400,2.4078,2372.5,2371.6,2.63432044]
[1725955799707,2.4078,2372.9,2372.0,3.92687962]
[1725955799864,2.4078,2372.9,2372.2,2.0]
[1725955800066,2.4078,2372.9,2372.3,0.08428807]
[1725955800264,0.05500005,2372.8,2372.2,2.0]
[1725955800461,0.05500005,2372.8,2372.3,0.08429413]
[1725955801005,0.05500005,2372.8,2372.1,3.59268796]
[1725955801209,0.05500005,2372.8,2371.9,2.0]
[1725955801210,0.05500005,2372.8,2372.2,0.9092688]
[1725955801580,2.3636,2372.7,2371.7,19.44143554]
[1725955801913,0.05500005,2372.6,2371.7,19.44143554]
[1725955802077,0.05500005,2372.6,2371.8,3.0]
[1725955802282,2.3636,2372.5,2371.7,19.44143554]
[1725955802463,2.4544,2372.3,2371.5,0.405]
[1725955802668,0.05500005,2372.2,2371.3,2.0]
[1725955802962,2.70534001,2372.3,2371.4,0.08431443]
[1725955803167,1.32929297,2372.6,2371.4,0.08431443]
[1725955803168,2.3318,2372.6,2371.7,4.4449]
[1725955803426,2.3318,2372.6,2371.8,0.08430375]
[1725955804235,3.21799531,2372.6,2371.9,0.55]
[1725955804544,0.46022883,2372.5,2371.8,0.55]
[1725955804827,3.33619531,2372.4,2371.5,3.0]
[1725955805036,1.84452185,2372.5,2371.2,3.0]
[1725955805037,3.39119536,2372.3,2371.2,3.0]
[1725955805237,2.45,2372.1,2371.3,0.08432333]
[1725955806321,2.45,2372.1,2371.4,0.55]
[1725955806641,2.45,2372.1,2371.5,0.08431593]
[1725955806933,2.45,2372.1,2371.6,0.55]
[1725955807139,2.45,2372.1,2371.7,0.08431558]
[1725955807337,2.3148,2372.4,2371.8,0.55]
[1725955807491,2.3148,2372.4,2371.9,0.08430754]
[1725955807693,2.3148,2372.4,2371.8,0.55]
[1725955807892,2.3148,2372.4,2371.7,0.55]
[1725955808092,2.81935172,2372.4,2371.7,0.55]
[1725955808344,3.70554703,2372.4,2371.7,0.55]
[1725955808829,2.81935172,2372.4,2371.7,0.55]
[1725955809039,3.70554703,2372.4,2371.7,0.55]
[1725955809192,2.81935172,2372.4,2371.7,0.55]
[1725955809387,3.70554703,2372.4,2371.6,0.55]
[1725955809588,3.70554703,2372.4,2371.6,1.541]
[1725955810297,2.87435177,2372.4,2371.6,1.541]
[1725955810495,2.81935172,2372.4,2371.7,0.08431111]
[1725955810789,2.81935172,2372.4,2371.8,0.55]
[1725955811138,0.05500005,2372.3,2371.8,0.55]